bitfinex-derivatives/quotes_BTCF0:USTF0_20251023
["timestamp","ask_amount","ask_price","bid_price","bid_amount"]
[1761193144372,0.58181776,108470.0,108460.0,0.1522242]
[1761193144574,0.55707632,108470.0,108460.0,0.1522242]
[1761193146074,0.43921853,108470.0,108460.0,0.1522242]
[1761193146372,0.58186005,108470.0,108460.0,0.1522242]
[1761193147570,0.54879152,108470.0,108460.0,0.50050502]
[1761193148378,0.43093373,108470.0,108460.0,0.50050502]
[1761193148676,0.54879152,108470.0,108460.0,0.50050502]
[1761193148875,0.54879152,108470.0,108460.0,0.74050502]
[1761193150175,0.54879152,108470.0,108460.0,0.41710502]
[1761193150379,0.54879152,108470.0,108460.0,0.74050502]
[1761193151382,0.58186005,108470.0,108460.0,0.74050502]
[1761193151979,0.54879152,108470.0,108460.0,0.74050502]
[1761193152677,0.54879152,108470.0,108460.0,0.41710502]
[1761193152878,0.54879152,108470.0,108460.0,0.74050502]
[1761193153886,0.18799152,108470.0,108460.0,0.74050502]
[1761193156377,0.18799152,108470.0,108460.0,0.41710502]
[1761193156582,0.18799152,108470.0,108460.0,0.74050502]
[1761193156583,0.07013373,108470.0,108460.0,0.74050502]
[1761193156985,0.07013373,108470.0,108460.0,0.41710502]
[1761193157282,0.02478373,108470.0,108460.0,0.67832281]
[1761193157485,0.02478373,108470.0,108460.0,0.86832281]
[1761193158081,0.02478373,108470.0,108460.0,0.55046502]
[1761193158082,0.10027226,108470.0,108460.0,0.55046502]
[1761193158282,0.10027226,108470.0,108460.0,0.77046502]
[1761193161386,0.10027226,108470.0,108460.0,1.13126502]
[1761193165588,0.07923226,108470.0,108460.0,1.13126502]
[1761193168285,0.04616373,108470.0,108460.0,1.13126502]
[1761193169788,0.04616373,108470.0,108460.0,1.24912281]
[1761193169988,0.02478373,108470.0,108460.0,1.28232984]
[1761193170287,0.40867373,108480.0,108470.0,0.1502087]
[1761193170492,0.43116373,108480.0,108470.0,0.17508629]
[1761193170689,0.54898774,108480.0,108470.0,0.2929103]
[1761193170889,0.54898774,108480.0,108470.0,0.4929103]
[1761193171891,0.54898774,108480.0,108470.0,0.2929103]
[1761193172093,0.54898774,108480.0,108470.0,0.5129103]
[1761193172488,0.54898774,108480.0,108470.0,0.2929103]
[1761193172993,0.54898774,108480.0,108470.0,0.17508629]
[1761193173195,0.54898774,108480.0,108470.0,0.17608629]
[1761193173394,0.54898774,108480.0,108470.0,0.1512087]
[1761193173889,0.54898774,108480.0,108470.0,0.1502087]
[1761193174295,0.54898774,108480.0,108470.0,0.1512087]
[1761193174490,0.18818774,108480.0,108470.0,0.1512087]
[1761193174688,0.66681175,108480.0,108470.0,0.1512087]
[1761193174886,0.69988028,108480.0,108470.0,0.4745687]
[1761193175904,0.69988028,108480.0,108470.0,0.4735687]
[1761193176800,0.66681175,108480.0,108470.0,0.4735687]
[1761193178197,0.69988028,108480.0,108470.0,0.4735687]
[1761193179299,0.33908028,108480.0,108470.0,0.4735687]
[1761193179491,0.30601175,108480.0,108470.0,0.4735687]
[1761193179690,0.30601175,108480.0,108470.0,0.7135687]
[1761193179892,0.1034214,108480.0,108470.0,1.19219271]
[1761193180098,0.22124541,108480.0,108470.0,1.19219271]
[1761193180399,0.22124541,108480.0,108470.0,1.0743687]
[1761193182086,0.22124541,108480.0,108470.0,1.0753687]
[1761193183699,0.22124541,108480.0,108470.0,1.19319271]
[1761193185590,0.0578414,108480.0,108470.0,1.71101672]
[1761193185803,0.03306853,108490.0,108480.0,0.1502002]
[1761193185993,0.03306853,108490.0,108480.0,0.96882421]
[1761193186196,0.58426004,108500.0,108490.0,0.0921617]
[1761193186402,0.60675004,108500.0,108490.0,0.4735517]
[1761193187302,0.55727254,108500.0,108490.0,0.4735517]
[1761193187490,0.55827254,108500.0,108490.0,0.4735517]
[1761193189098,0.67609655,108500.0,108490.0,0.4735517]
[1761193189294,0.31529655,108500.0,108490.0,0.4735517]
[1761193189901,0.28222802,108500.0,108490.0,0.4735517]
[1761193190495,0.64302802,108500.0,108490.0,0.4735517]
[1761193192906,0.52520401,108500.0,108490.0,0.4735517]
[1761193193108,0.16440401,108500.0,108490.0,0.4735517]
[1761193193312,0.001,108500.0,108490.0,1.23217571]
[1761193193503,0.08277853,108510.0,108500.0,0.1495832]
[1761193193704,0.19277853,108510.0,108500.0,0.1495832]
[1761193193904,0.55357853,108510.0,108500.0,0.1495832]
[1761193194103,0.44357853,108510.0,108500.0,0.1495832]
[1761193194305,0.48277853,108510.0,108500.0,0.1495832]
[1761193194507,0.44971,108510.0,108500.0,0.1495832]
[1761193194707,0.56853401,108510.0,108500.0,0.1495832]
[1761193195101,0.56853401,108510.0,108500.0,0.48740721]
[1761193195102,0.16853401,108510.0,108500.0,0.48740721]
[1761193195303,0.16853401,108510.0,108500.0,0.26740721]
[1761193195506,0.16853401,108510.0,108500.0,0.82820721]
[1761193195706,0.16953401,108510.0,108500.0,0.82820721]
[1761193196109,0.0068,108510.0,108500.0,0.7103832]
[1761193196300,0.0068,108510.0,108500.0,0.82820721]
[1761193196507,0.0068,108510.0,108500.0,0.94603122]
[1761193197313,0.0068,108510.0,108500.0,0.7103832]
[1761193197610,0.0068,108510.0,108500.0,0.94603122]
[1761193198411,0.0068,108510.0,108500.0,1.34603122]
[1761193198912,0.43877853,108530.0,108520.0,0.05743]
[1761193199216,0.16273401,108530.0,108520.0,0.79075021]
[1761193200206,0.16473401,108530.0,108520.0,0.6729262]
[1761193200407,0.16473401,108530.0,108520.0,0.4729262]
[1761193201607,0.16573401,108530.0,108520.0,0.4729262]
[1761193203217,0.16573401,108530.0,108520.0,0.1495662]
[1761193203413,0.16573401,108530.0,108520.0,0.4729262]
[1761193203604,0.16573401,108530.0,108520.0,0.48231033]
[1761193204021,0.16573401,108530.0,108520.0,0.60013434]
[1761193204206,0.16573401,108530.0,108520.0,0.83013434]
[1761193204710,0.14348401,108530.0,108520.0,0.83013434]
[1761193205415,0.003,108530.0,108520.0,0.83013434]
[1761193205721,0.003,108530.0,108520.0,1.30875835]
[1761193206019,0.003,108530.0,108520.0,1.70875835]
[1761193206320,0.16753401,108550.0,108540.0,0.1495493]
[1761193206520,0.16753401,108550.0,108540.0,0.59093331]
[1761193207619,0.16753401,108550.0,108540.0,0.4731093]
[1761193208214,0.16853401,108550.0,108540.0,0.59093331]
[1761193209213,0.05071,108550.0,108540.0,0.59093331]
[1761193209422,0.05071,108550.0,108540.0,0.89093331]
[1761193209423,0.0058,108550.0,108540.0,0.89093331]
[1761193209612,0.0058,108550.0,108540.0,1.69173331]
[1761193211218,0.12362401,108550.0,108540.0,1.69173331]
[1761193211620,0.0058,108550.0,108540.0,1.69173331]
[1761193212221,0.05071,108550.0,108540.0,1.5739093]
[1761193212521,0.16853401,108550.0,108540.0,1.69173331]
[1761193212710,0.46236129,108570.0,108560.0,0.0921024]
[1761193212910,0.09865037,108570.0,108560.0,1.11974042]
[1761193213110,0.09865037,108570.0,108560.0,1.21191641]
[1761193213520,0.09865037,108570.0,108560.0,1.72974042]
[1761193213916,0.09865037,108570.0,108560.0,1.46974042]
[1761193214223,0.26238438,108570.0,108560.0,1.0740924]
[1761193214417,0.26238438,108570.0,108560.0,1.19191641]
[1761193215830,0.26238438,108570.0,108560.0,0.95191641]
[1761193216021,0.26238438,108570.0,108560.0,1.00191641]
[1761193216216,0.14456037,108570.0,108560.0,1.00191641]
[1761193216423,0.26238438,108570.0,108560.0,1.00191641]
[1761193220327,0.24013438,108570.0,108560.0,1.00191641]
[1761193220527,0.24013438,108570.0,108560.0,1.20191641]
[1761193220831,0.12231037,108570.0,108560.0,1.20191641]
[1761193221126,0.24013438,108570.0,108560.0,1.20191641]
[1761193222439,0.24013438,108570.0,108560.0,1.20291641]
[1761193223127,0.23913438,108570.0,108560.0,1.20291641]
[1761193224135,0.09865037,108570.0,108560.0,1.20291641]
[1761193224833,0.09865037,108570.0,108560.0,1.32074042]
[1761193226534,0.09865037,108570.0,108560.0,0.99698042]
[1761193226739,0.09865037,108570.0,108560.0,1.32090042]
[1761193228733,0.09865037,108570.0,108560.0,1.12090042]
[1761193228930,0.09865037,108570.0,108560.0,1.37090042]
[1761193229434,0.09865037,108570.0,108560.0,1.77090042]
[1761193232726,0.09865037,108570.0,108560.0,1.65285299]
[1761193233726,0.09865037,108570.0,108560.0,1.5352524]
[1761193233923,0.09865037,108570.0,108560.0,1.65285299]
[1761193234127,7e-08,108570.0,108560.0,2.13117358]
[1761193234333,7e-08,108570.0,108560.0,2.03845058]
[1761193235336,7e-08,108570.0,108560.0,2.07165761]
[1761193235928,7e-08,108570.0,108560.0,2.04678002]
[1761193236638,7e-08,108570.0,108560.0,2.16438061]
[1761193237137,7e-08,108570.0,108560.0,2.04678002]
[1761193239141,7e-08,108570.0,108560.0,2.16438061]
[1761193239441,7e-08,108570.0,108560.0,2.2139541]
[1761193239839,7e-08,108570.0,108560.0,2.06314648]
[1761193240240,7e-08,108570.0,108560.0,2.18074707]
[1761193241342,7e-08,108570.0,108560.0,1.45914707]
[1761193241545,7e-08,108570.0,108560.0,2.18074707]
[1761193243342,7e-08,108570.0,108560.0,2.32334707]
[1761193245947,7e-08,108570.0,108560.0,2.33987157]
[1761193249146,7e-08,108590.0,108580.0,0.0133]
[1761193249352,0.04231,108610.0,108600.0,0.05563]
[1761193249642,0.02103,108610.0,108600.0,1.27403197]
[1761193249846,0.04231,108610.0,108600.0,1.27403197]
[1761193250147,0.40655631,108620.0,108610.0,0.0920601]
[1761193250340,0.04231,108620.0,108610.0,0.92609069]
[1761193251350,0.04231,108620.0,108610.0,1.25001069]
[1761193251849,0.02103,108620.0,108610.0,1.25001069]
[1761193252049,0.02203,108620.0,108610.0,1.25001069]
[1761193253650,0.001,108620.0,108610.0,1.25001069]
[1761193254458,0.0242,108620.0,108610.0,1.25001069]
[1761193255953,0.04625,108620.0,108610.0,1.25001069]
[1761193257054,0.0242,108620.0,108610.0,1.25001069]
[1761193257552,0.001,108620.0,108610.0,1.25001069]
[1761193257851,0.001,108620.0,108610.0,0.92609069]
[1761193258147,0.001,108620.0,108610.0,1.24989069]
[1761193268959,0.001,108620.0,108610.0,1.27468566]
[1761193269857,0.001,108620.0,108610.0,1.24989069]
[1761193270465,0.028,108630.0,108620.0,0.1484016]
[1761193270665,0.028,108630.0,108620.0,0.94680219]
[1761193270960,0.0048,108630.0,108620.0,0.94680219]
[1761193271166,0.0048,108630.0,108620.0,1.06440278]
[1761193271664,0.06997631,108650.0,108640.0,0.1483847]
[1761193271960,0.06997631,108650.0,108640.0,1.28042529]
[1761193274761,0.06997631,108650.0,108640.0,0.95678529]
[1761193274962,0.06997631,108650.0,108640.0,1.28038529]
[1761193276557,0.06997631,108650.0,108640.0,1.2894534]
[1761193280262,0.5875769,108650.0,108640.0,0.7819047]
[1761193282473,0.5875937,108650.0,108640.0,0.7819047]
[1761193282969,0.5875937,108650.0,108640.0,1.1427047]
[1761193284459,0.46999311,108650.0,108640.0,1.1427047]
[1761193285570,0.46999311,108650.0,108640.0,1.1447047]
[1761193286071,0.06999311,108650.0,108640.0,1.1447047]
[1761193286271,0.04794311,108650.0,108640.0,1.26230529]
[1761193286565,0.06921311,108650.0,108640.0,1.26226529]
[1761193287070,0.06921311,108650.0,108640.0,1.1446647]
[1761193288073,0.06921311,108650.0,108640.0,1.26226529]
[1761193288572,0.06921311,108650.0,108640.0,1.26126529]
[1761193288871,0.06921311,108650.0,108640.0,0.93778529]
[1761193289072,0.06921311,108650.0,108640.0,1.26122529]
[1761193289973,0.06921311,108650.0,108640.0,1.1436247]
[1761193290471,0.06921311,108650.0,108640.0,1.26122529]
[1761193292672,0.18666373,108650.0,108640.0,1.26107532]
[1761193297670,0.61973226,108650.0,108640.0,0.7827447]
[1761193299368,0.61973226,108650.0,108640.0,0.5127447]
[1761193299778,0.59498915,108650.0,108640.0,0.63019532]
[1761193299977,0.61976556,108650.0,108640.0,0.63019532]
[1761193300165,0.59498915,108650.0,108640.0,0.63019532]
[1761193305382,0.59498915,108650.0,108640.0,0.65499522]
[1761193305583,0.6197774,108650.0,108640.0,0.93499522]
[1761193306076,0.6197774,108650.0,108640.0,0.8175446]
[1761193306276,0.6197774,108650.0,108640.0,0.93499522]
[1761193307783,0.64446665,108650.0,108640.0,0.38071]
[1761193308088,1.08964874,108650.0,108640.0,0.05735]
[1761193308385,1.08964874,108650.0,108640.0,0.4596745]
[1761193308682,1.08964874,108650.0,108640.0,0.36764]
[1761193308883,1.08964874,108650.0,108640.0,0.4596747]
[1761193309285,1.08964874,108650.0,108640.0,0.1353947]
[1761193309481,1.08964874,108650.0,108640.0,0.4586747]
[1761193310384,1.08964874,108650.0,108640.0,0.02131]
[1761193310583,1.04017124,108650.0,108640.0,0.34459]
[1761193310784,1.04017124,108650.0,108640.0,0.02131]
[1761193310983,1.04017124,108650.0,108630.0,0.4718278]
[1761193311179,0.72114974,108640.0,108630.0,0.4718278]
[1761193311780,0.72771974,108640.0,108630.0,0.04352]
[1761193311975,0.69469634,108640.0,108630.0,0.4588432]
[1761193312382,1.09469634,108640.0,108630.0,0.04352]
[1761193312573,0.05534,108630.0,108620.0,0.4594117]
[1761193312781,0.61608922,108630.0,108620.0,0.4594117]
[1761193312977,0.58308978,108630.0,108620.0,0.4594117]
[1761193313180,0.61607355,108630.0,108620.0,0.1361317]
[1761193313988,0.61607355,108630.0,108620.0,0.1496617]
[1761193314283,0.60580355,108630.0,108620.0,0.1506617]
[1761193314587,0.55630439,108630.0,108620.0,0.1506617]
[1761193314782,0.56569841,108630.0,108620.0,0.1506617]
[1761193315184,0.5904212,108630.0,108620.0,0.1506617]
[1761193319285,0.55743743,108630.0,108620.0,0.1506617]
[1761193320394,0.54804341,108630.0,108620.0,0.1506617]
[1761193321098,0.58102718,108630.0,108620.0,0.1506617]
[1761193322396,0.58102718,108630.0,108620.0,0.4306617]
[1761193322787,0.10277656,108630.0,108620.0,0.26811232]
[1761193322991,0.06979279,108630.0,108620.0,0.96891232]
[1761193323698,0.06979279,108630.0,108620.0,1.08636294]
[1761193323901,0.58102718,108640.0,108630.0,0.1496532]
[1761193324194,0.22022718,108640.0,108630.0,0.92046382]
[1761193324794,0.10277656,108640.0,108630.0,0.92046382]
[1761193324995,0.18724341,108640.0,108630.0,0.92046382]
[1761193325500,0.18724341,108640.0,108630.0,0.92146382]
[1761193326501,0.06979279,108640.0,108630.0,0.92146382]
[1761193327100,0.18724341,108640.0,108630.0,0.92146382]
[1761193327693,0.18724341,108640.0,108630.0,0.9307578]
[1761193328192,0.18724341,108640.0,108630.0,0.92146382]
[1761193330104,0.06979279,108640.0,108630.0,0.8040132]
[1761193330403,0.18724341,108640.0,108630.0,0.92146382]
[1761193331294,0.18724341,108640.0,108630.0,0.93068796]
[1761193331797,0.14217341,108640.0,108630.0,0.93068796]
[1761193331997,0.02472279,108640.0,108630.0,0.89068796]
[1761193332300,0.02472279,108640.0,108630.0,1.29068796]
[1761193332496,0.02472279,108640.0,108630.0,1.65148796]
[1761193332702,0.16439341,108640.0,108630.0,1.65148796]
[1761193333402,0.04694279,108640.0,108630.0,1.65148796]
[1761193333603,0.02472279,108640.0,108630.0,1.65148796]
[1761193333804,0.02472279,108640.0,108630.0,1.64226382]
[1761193334706,0.04694279,108640.0,108630.0,1.5248132]
[1761193334903,0.04694279,108640.0,108630.0,1.64226382]
[1761193335104,0.06979279,108640.0,108630.0,1.64226382]
[1761193335306,0.18724341,108640.0,108630.0,1.64226382]
[1761193335500,0.18724341,108640.0,108630.0,1.46226382]
[1761193335804,0.30469403,108640.0,108630.0,0.9448932]
[1761193336106,0.18724341,108640.0,108630.0,1.06234382]
[1761193336600,0.18724341,108640.0,108630.0,0.9448932]
[1761193337802,0.30469403,108640.0,108630.0,0.1506532]
[1761193337998,0.6984778,108640.0,108630.0,0.4740532]
[1761193338605,0.6984778,108640.0,108630.0,0.1506532]
[1761193338909,1.07375501,108640.0,108630.0,0.1506532]
[1761193339206,1.12325417,108640.0,108630.0,0.1506532]
[1761193339704,1.12325417,108640.0,108630.0,0.1496532]
[1761193341507,0.55630439,108640.0,108630.0,0.1496532]
[1761193341703,0.22025488,108640.0,108630.0,0.1496532]
[1761193342807,0.3377055,108640.0,108630.0,0.1506532]
[1761193343508,0.10280426,108640.0,108630.0,0.1506532]
[1761193343704,0.3377055,108640.0,108630.0,0.1506532]
[1761193343907,0.3377055,108640.0,108630.0,0.1496532]
[1761193346211,0.22025488,108640.0,108630.0,0.4896532]
[1761193346407,0.16442111,108640.0,108630.0,1.00710382]
[1761193346603,0.14220111,108640.0,108630.0,0.60710382]
[1761193346805,0.02475049,108640.0,108630.0,0.60710382]
[1761193347006,0.14220111,108640.0,108630.0,0.60710382]
[1761193347513,0.14220111,108640.0,108630.0,0.96890382]
[1761193347698,0.02475049,108640.0,108630.0,1.34890382]
[1761193350013,0.02475049,108640.0,108630.0,1.37370372]
[1761193350412,0.14220111,108640.0,108630.0,1.37370372]
[1761193351511,0.02475049,108640.0,108630.0,1.37370372]
[1761193353117,0.14220111,108640.0,108630.0,1.37370372]
[1761193354617,0.02475049,108640.0,108630.0,1.37370372]
[1761193354917,0.02475049,108640.0,108630.0,1.37372407]
[1761193359822,0.05773426,108640.0,108630.0,1.34892417]
[1761193361920,0.08084426,108640.0,108630.0,1.34792417]
[1761193362118,0.05773426,108640.0,108630.0,1.34892417]
[1761193362525,0.05773426,108640.0,108630.0,0.8314532]
[1761193362724,0.02475049,108640.0,108630.0,1.37372407]
[1761193363020,0.02475049,108640.0,108630.0,1.52425839]
[1761193363228,0.05773426,108650.0,108640.0,0.1504547]
[1761193363419,0.02475049,108650.0,108640.0,1.25684557]
[1761193365229,0.02475049,108650.0,108640.0,1.25784557]
[1761193366235,0.22156523,108660.0,108650.0,0.1504462]
[1761193367337,0.10409426,108660.0,108650.0,0.1504462]
[1761193367537,0.22156523,108660.0,108650.0,0.1504462]
[1761193368237,0.22156523,108660.0,108650.0,0.1514462]
[1761193369239,0.10409426,108660.0,108650.0,0.1514462]
[1761193369432,0.22156523,108660.0,108650.0,0.1514462]
[1761193369837,0.18858146,108660.0,108650.0,0.1514462]
[1761193370440,0.07111049,108660.0,108650.0,0.1514462]
[1761193370748,0.18858146,108660.0,108650.0,0.1514462]
[1761193371939,0.18858146,108660.0,108650.0,0.1762461]
[1761193376037,0.07111049,108660.0,108650.0,0.1762461]
[1761193377743,0.07111049,108660.0,108650.0,0.3362461]
[1761193378045,0.18858146,108660.0,108650.0,0.3362461]
[1761193378840,0.07111049,108660.0,108650.0,0.3362461]
[1761193379150,0.18858146,108660.0,108650.0,0.2862461]
[1761193379650,0.14222146,108660.0,108650.0,0.1762461]
[1761193379946,0.18726146,108660.0,108650.0,0.1762461]
[1761193380146,0.18726146,108660.0,108650.0,0.2762461]
[1761193380341,0.18726146,108660.0,108650.0,0.2862461]
[1761193380847,0.06979049,108660.0,108650.0,0.2862461]
[1761193381150,0.18726146,108660.0,108650.0,0.2862461]
[1761193381447,0.18726146,108660.0,108650.0,0.4762461]
[1761193381748,0.02475049,108660.0,108650.0,0.59371707]
[1761193381945,0.04756049,108660.0,108650.0,0.2714462]
[1761193382148,0.06979049,108660.0,108650.0,0.2714462]
[1761193383942,0.06979049,108660.0,108650.0,0.4614462]
[1761193384345,0.02475049,108660.0,108650.0,0.4614462]
[1761193384543,0.02475049,108660.0,108650.0,0.57891717]
[1761193385045,0.02475049,108660.0,108650.0,0.93971717]
[1761193385249,0.02475049,108660.0,108650.0,0.8222462]
[1761193385442,0.02475049,108660.0,108650.0,0.93971717]
[1761193385640,0.05236049,108670.0,108660.0,0.1481777]
[1761193385846,0.05236049,108670.0,108660.0,1.26968867]
[1761193386148,0.05236049,108670.0,108660.0,1.1522177]
[1761193386846,0.07459049,108670.0,108660.0,1.1522177]
[1761193387649,0.10757426,108670.0,108660.0,1.1522177]
[1761193389654,0.08534426,108670.0,108660.0,1.1522177]
[1761193391751,0.10757426,108670.0,108660.0,1.1522177]
[1761193393053,0.08282377,108670.0,108660.0,1.1522177]
[1761193393247,0.10764142,108670.0,108660.0,1.1522177]
[1761193396153,0.06260142,108670.0,108660.0,1.38715964]
[1761193396450,0.02961765,108670.0,108660.0,1.69448857]
[1761193397050,0.02961765,108670.0,108660.0,1.29448857]
[1761193403462,0.19126862,108670.0,108660.0,0.8289777]
[1761193403754,0.19126862,108670.0,108660.0,1.1521377]
[1761193403947,0.19126862,108670.0,108660.0,0.4713377]
[1761193404150,0.22425239,108670.0,108660.0,0.4713377]
[1761193405360,0.19126862,108670.0,108660.0,0.4713377]
[1761193405559,0.22425239,108670.0,108660.0,0.4713377]
[1761193407562,0.10678142,108670.0,108660.0,0.4713377]
[1761193407862,0.22425239,108670.0,108660.0,0.4713377]
[1761193408063,0.22425239,108670.0,108660.0,0.5213377]
[1761193409956,0.19943474,108670.0,108660.0,0.5213377]
[1761193410155,0.6489339,108670.0,108660.0,0.1481777]
[1761193410357,0.94725097,108670.0,108660.0,0.1481777]
[1761193410558,1.01300479,108670.0,108660.0,0.1481777]
[1761193411963,0.80978,108670.0,108660.0,0.1481777]
[1761193412263,0.92725097,108670.0,108660.0,0.1481777]
[1761193413173,0.99300479,108670.0,108660.0,0.1481777]
[1761193413663,1.00327479,108670.0,108660.0,0.1348977]
[1761193415474,1.00327479,108670.0,108660.0,0.1136577]
[1761193416068,1.00427479,108670.0,108660.0,0.1364277]
[1761193416658,1.12173388,108670.0,108660.0,0.1364277]
[1761193416966,1.12073388,108670.0,108660.0,0.1364277]
[1761193417670,1.12073388,108670.0,108650.0,0.1510092]
[1761193417870,1.01413742,108660.0,108650.0,0.1510092]
[1761193418072,0.96455006,108660.0,108650.0,0.1510092]
[1761193418278,1.01412775,108660.0,108650.0,0.1510092]
[1761193419870,1.04717399,108660.0,108650.0,0.1510092]
[1761193421360,1.02448399,108660.0,108650.0,0.1510092]
[1761193421563,0.72397399,108660.0,108650.0,0.1510092]
[1761193421870,0.5817103,108660.0,108650.0,0.26847423]
[1761193422070,0.5817103,108660.0,108650.0,0.1510092]
[1761193423259,0.5817103,108660.0,108650.0,0.1520092]
[1761193423570,0.46424527,108660.0,108650.0,0.26947423]
[1761193423764,0.5817103,108660.0,108650.0,0.26947423]
[1761193429575,0.5817103,108660.0,108650.0,0.1520092]
[1761193429769,0.5817103,108660.0,108650.0,0.26947423]
[1761193429970,0.5817103,108660.0,108650.0,0.1520092]
[1761193433079,0.5817103,108660.0,108650.0,0.26947423]
[1761193435378,0.55693127,108660.0,108650.0,0.26947423]
[1761193436678,0.55693127,108660.0,108650.0,0.1520092]
[1761193437184,0.60650896,108660.0,108650.0,0.1510092]
[1761193437383,0.55693127,108660.0,108650.0,0.1520092]
[1761193438081,0.55693127,108660.0,108650.0,0.26947423]
[1761193438269,0.60650896,108660.0,108650.0,0.26947423]
[1761193439482,0.60650896,108660.0,108650.0,0.26847423]
[1761193439682,0.60650896,108660.0,108650.0,0.26947423]
[1761193442581,0.60650896,108660.0,108650.0,0.1520092]
[1761193442972,0.72397399,108660.0,108650.0,0.1520092]
[1761193444083,0.72397399,108660.0,108650.0,0.1510092]
[1761193444384,0.72397399,108660.0,108650.0,0.1520092]
[1761193453188,0.72397399,108660.0,108650.0,0.29427413]
[1761193453590,0.60650896,108660.0,108650.0,0.29427413]
[1761193453790,0.60650896,108660.0,108650.0,0.63427413]
[1761193453992,0.60650896,108660.0,108650.0,0.60947423]
[1761193455291,0.60650896,108660.0,108650.0,0.60847423]
[1761193455491,0.60650896,108660.0,108650.0,0.60947423]
[1761193457890,0.60650896,108660.0,108650.0,0.4920092]
[1761193458098,0.55693127,108660.0,108650.0,0.1768091]
[1761193458995,0.6743963,108660.0,108650.0,0.1768091]
[1761193460104,0.69092775,108660.0,108650.0,0.1520092]
[1761193460508,0.69092775,108660.0,108650.0,0.1510092]
[1761193462209,0.69092775,108660.0,108650.0,0.1520092]
[1761193463310,0.69092775,108660.0,108650.0,0.1510092]
[1761193463907,0.45599769,108660.0,108650.0,0.1510092]
[1761193464116,0.69749775,108660.0,108650.0,0.0920192]
[1761193464412,0.71367388,108660.0,108650.0,0.0920192]
[1761193464615,0.71367388,108660.0,108650.0,0.1152592]
[1761193465011,0.71367388,108660.0,108650.0,0.02324]
[1761193465518,0.71367388,108660.0,108650.0,0.1152661]
[1761193467813,1.11367388,108660.0,108640.0,0.1512087]
[1761193468026,0.24504904,108650.0,108640.0,0.4743287]
[1761193468518,0.24504904,108650.0,108640.0,0.7143287]
[1761193468812,0.24504904,108650.0,108640.0,0.1512087]
[1761193469009,0.24504904,108650.0,108640.0,0.4743287]
[1761193469618,0.24504904,108650.0,108640.0,0.4753287]
[1761193469817,0.24504904,108650.0,108640.0,0.1522087]
[1761193470018,0.22020178,108650.0,108640.0,0.5001745]
[1761193470319,0.22020178,108650.0,108640.0,0.4991745]
[1761193470813,0.22020178,108650.0,108640.0,0.5001745]
[1761193475223,0.22020178,108650.0,108640.0,0.1770545]
[1761193475521,0.22020178,108650.0,108640.0,0.5001745]
[1761193476816,0.2202126,108650.0,108640.0,0.5001745]
[1761193477022,0.2202126,108650.0,108640.0,0.4991745]
[1761193477222,0.2202126,108650.0,108640.0,0.5001745]
[1761193479426,0.2202126,108650.0,108640.0,0.7891745]
[1761193479622,0.2202126,108650.0,108640.0,0.7901745]
[1761193482219,0.2202126,108650.0,108640.0,0.7891745]
[1761193482424,0.2202126,108650.0,108640.0,0.7901745]
[1761193483525,0.10273675,108650.0,108640.0,0.7901745]
[1761193483726,0.2202126,108650.0,108640.0,0.7901745]
[1761193485127,0.2202126,108650.0,108640.0,0.5001745]
[1761193486632,0.19537145,108650.0,108640.0,0.1522087]
[1761193488030,0.19537145,108650.0,108640.0,0.1770545]
[1761193488234,0.20477156,108650.0,108640.0,0.1770545]
[1761193488621,0.19537145,108650.0,108640.0,0.1770545]
[1761193491036,0.22021727,108650.0,108640.0,0.1770545]
[1761193491333,0.19537145,108650.0,108640.0,0.1770545]
[1761193491928,0.22021867,108650.0,108640.0,0.1770545]
[1761193492231,0.19537145,108650.0,108640.0,0.1770545]
[1761193492735,0.22022029,108650.0,108640.0,0.1770545]
[1761193493126,0.22022029,108650.0,108640.0,0.1760545]
[1761193493329,0.22022029,108650.0,108640.0,0.1770545]
[1761193493838,0.19537145,108650.0,108640.0,0.1770545]
[1761193498434,0.22022513,108650.0,108640.0,0.1770545]
[1761193499242,0.22022513,108650.0,108640.0,0.4970545]
[1761193499737,0.02485368,108650.0,108640.0,1.4283937]
[1761193500135,0.05797928,108650.0,108640.0,1.39533035]
[1761193500435,0.05797928,108650.0,108640.0,1.2778545]
[1761193501840,0.02485368,108650.0,108640.0,1.2778545]
[1761193503043,0.02485368,108650.0,108640.0,1.31091785]
[1761193504344,0.02485368,108650.0,108640.0,1.2778545]
[1761193506847,0.02485368,108650.0,108640.0,0.8778545]
[1761193508146,0.02485368,108650.0,108640.0,0.99533035]
[1761193509357,0.02485368,108650.0,108640.0,1.39533035]
[1761193510056,0.19699513,108660.0,108650.0,0.1488162]
[1761193510249,0.19699513,108660.0,108650.0,0.49672597]
[1761193510456,0.19417145,108660.0,108650.0,0.4718962]
[1761193511760,0.72213571,108660.0,108650.0,0.05679]
[1761193512060,0.68899476,108660.0,108650.0,0.1488162]
[1761193512259,0.57151891,108660.0,108650.0,0.1498162]
[1761193513161,0.57151891,108660.0,108650.0,0.1488162]
[1761193517858,1.08899476,108660.0,108650.0,0.05679]
[1761193518249,1.08899476,108660.0,108650.0,0.1488162]
[1761193519965,0.97151891,108660.0,108650.0,0.1488162]
[1761193529063,0.61071891,108660.0,108650.0,0.1488162]
[1761193529277,0.97151891,108660.0,108650.0,0.1488162]
[1761193529967,1.08899476,108660.0,108650.0,0.1488162]
[1761193530268,0.97151891,108660.0,108650.0,0.1488162]
[1761193530770,1.08899476,108660.0,108650.0,0.1488162]
[1761193532073,0.97151891,108660.0,108650.0,0.1488162]
[1761193532367,1.00462757,108660.0,108650.0,0.1488162]
[1761193536475,0.97151891,108660.0,108650.0,0.1488162]
[1761193536872,1.08897316,108660.0,108650.0,0.1488162]
[1761193537479,0.85404306,108660.0,108650.0,0.1488162]
[1761193537667,1.08897316,108660.0,108650.0,0.1488162]
[1761193537867,1.07242031,108660.0,108650.0,0.1488162]
[1761193541779,1.0393001,108660.0,108650.0,0.1488162]
[1761193541978,1.07244148,108660.0,108650.0,0.1488162]
[1761193542175,1.08897316,108660.0,108650.0,0.1498162]
[1761193543383,1.08897316,108660.0,108650.0,0.1488162]
[1761193550088,1.0393001,108660.0,108650.0,0.1488162]
[1761193550888,1.0458701,108660.0,108650.0,0.1488162]
[1761193551086,1.11162392,108660.0,108650.0,0.1488162]
[1761193551884,1.11162392,108660.0,108640.0,0.1503891]
[1761193552086,0.21117577,108650.0,108640.0,0.1503891]
[1761193553091,0.21117577,108650.0,108640.0,0.1513891]
[1761193555484,0.21117577,108650.0,108640.0,0.1503891]
[1761193556693,0.21117577,108650.0,108640.0,0.1513891]
[1761193560091,0.24431929,108650.0,108640.0,0.1513891]
[1761193560696,0.19459857,108650.0,108640.0,0.1513891]
[1761193564000,0.67286362,108650.0,108640.0,0.1513891]
[1761193564199,0.72258434,108650.0,108640.0,0.1513891]
[1761193565010,1.04562434,108650.0,108640.0,0.1513891]
[1761193565605,0.99590362,108650.0,108640.0,0.1513891]
[1761193566613,1.04562434,108650.0,108640.0,0.1503891]
[1761193568612,0.05039,108640.0,108630.0,0.1492175]
[1761193568812,0.70411176,108640.0,108630.0,0.1492175]
[1761193569815,0.70411176,108640.0,108630.0,0.1502175]
[1761193570003,0.69754176,108640.0,108630.0,0.1502175]